fUSD/lending_fUSD_20240215
["ID","MTS","AMOUNT","RATE_DAILY","PERIOD"]
[314152432,1708026634970,-250.0,0.00036806,111]
[314152434,1708026634980,-636.35,0.00036876,2]
[314152436,1708026634989,-293.08,0.00036893,2]
[314152439,1708026634999,-368.2443,0.00036901,2]
[314152440,1708026635008,-2450.3078,0.00036901,2]
[314152442,1708026635018,-4491.6954,0.00036901,2]
[314152445,1708026635028,-359.76070574,0.00037,30]
[314152446,1708026635038,-899.0,0.00037,2]
[314152448,1708026635047,-783.04,0.00037052,2]
[314152450,1708026635057,-378.31,0.0003712,2]
[314152452,1708026635066,-190.85,0.0003712,2]
[314152454,1708026635076,-166.72,0.0003712,2]
[314152456,1708026635085,-156.68,0.00037146,2]
[314152458,1708026635095,-185.29190013,0.00037317,3]
[314152460,1708026635105,-151.0,0.0003743,7]
[314152462,1708026635114,-167.83,0.00037691,2]
[314152464,1708026635124,-1293.5,0.00037691,2]
[314152466,1708026635133,-156.68,0.0003778,2]
[314152468,1708026635143,-155.0,0.0003798,2]
[314152470,1708026635152,-2000.0,0.00038,4]
[314152472,1708026635161,-400.3,0.00038106,2]
[314152474,1708026635170,-151.0,0.00038115,7]
[314152476,1708026635179,-204.0,0.00038274,2]
[314152478,1708026635189,-575.58,0.00038351,2]
[314152480,1708026635198,-500.0,0.00038356,7]
[314152482,1708026635208,-68.27819234,0.00038356,15]
[314152489,1708026637784,-2296.57180766,0.00038356,15]
[314152490,1708026637794,-4000.0,0.00038356,30]
[314152491,1708026637804,-155.1,0.00038356,2]
[314152492,1708026637814,-9221.5433,0.0003841,2]
[314152493,1708026637823,-156.68,0.00038414,2]
[314152494,1708026637833,-628.3205,0.0003844,2]
[314152495,1708026637842,-500.0,0.00038445,7]
[314152496,1708026637851,-528.6443232,0.00038445,7]
[314152497,1708026637861,-435.97584444,0.00038445,7]
[314152498,1708026637870,-500.0,0.00038445,7]
[314152499,1708026637879,-500.0,0.00038445,7]
[314152500,1708026638014,-223.62467067,0.00038445,7]
[314152501,1708026638062,-290.79172401,0.00038445,7]
[314152502,1708026638071,-500.0,0.00038445,7]
[314152503,1708026638081,-500.0,0.00038445,7]
[314152505,1708026638090,-500.0,0.00038445,7]
[314152506,1708026638099,-500.0,0.00038445,7]
[314152507,1708026638108,-500.0,0.00038445,7]
[314152508,1708026638118,-500.0,0.00038445,7]
[314152509,1708026638128,-500.0,0.00038445,7]
[314152510,1708026638137,-500.0,0.00038445,7]
[314152511,1708026638146,-500.0,0.00038445,7]
[314152512,1708026638156,-500.0,0.00038445,7]
[314152513,1708026638165,-500.0,0.00038445,7]
[314152514,1708026638175,-500.0,0.00038445,7]
[314152516,1708026638184,-500.0,0.00038445,7]
[314152518,1708026638194,-500.0,0.00038445,7]
[314152520,1708026638203,-542.80869724,0.00038445,7]
[314152522,1708026638212,-500.0,0.00038445,7]
[314152524,1708026638221,-500.0,0.00038445,2]
[314152526,1708026638230,-500.0,0.00038445,7]
[314152528,1708026638240,-500.0,0.00038445,7]
[314152530,1708026638249,-500.0,0.00038445,7]
[314152532,1708026638259,-503.79362809,0.00038445,7]
[314152534,1708026638268,-500.0,0.00038445,7]
[314152536,1708026638278,-500.0,0.00038445,7]
[314152538,1708026638287,-500.0,0.00038445,7]
[314152540,1708026638296,-152.0,0.00038475,3]
[314152542,1708026638306,-205.21073047,0.00038479,11]
[314152544,1708026638315,-447.18866192,0.00038479,10]
[314152546,1708026638325,-585.40192047,0.00038479,2]
[314152548,1708026638334,-2500.0,0.0003848,2]
[314152550,1708026638343,-3115.00180239,0.00038489,2]
[314152552,1708026638352,-500.0,0.0003849,7]
[314152554,1708026638361,-451.4658,0.0003851,2]
[314152556,1708026638370,-21012.5267,0.0003851,2]
[314152558,1708026638379,-13458.4474,0.0003851,2]
[314152561,1708026638390,-402.79667361,0.00038533,7]
[314152562,1708026638399,-500.0,0.00038533,7]
[314152565,1708026638411,-500.0,0.00038533,7]
[314152566,1708026638420,-500.0,0.00038533,7]
[314152568,1708026638429,-500.0,0.00038533,7]
[314152570,1708026638439,-500.0,0.00038533,7]
[314152573,1708026638451,-500.0,0.00038533,7]
[314152574,1708026638460,-500.0,0.00038533,7]
[314152576,1708026638469,-500.0,0.00038534,7]
[314152578,1708026638479,-500.0,0.00038534,7]
[314152580,1708026638490,-500.0,0.00038534,7]
[314152582,1708026638499,-1000.0,0.00038534,7]
[314152585,1708026638508,-500.0,0.00038534,7]
[314152587,1708026638517,-500.0,0.00038534,7]
[314152589,1708026638527,-500.0,0.00038534,7]
[314152591,1708026638536,-500.0,0.00038534,7]
[314152593,1708026638547,-500.0,0.00038534,7]
[314152595,1708026638556,-500.0,0.00038534,7]
[314152597,1708026638565,-500.0,0.00038534,7]
[314152598,1708026638574,-500.0,0.00038534,7]
[314152600,1708026638583,-500.0,0.00038534,7]
[314152603,1708026638592,-500.0,0.00038534,7]
[314152604,1708026638601,-500.0,0.00038534,7]
[314152606,1708026638610,-526.51571352,0.00038534,7]
[314152608,1708026638619,-516.51780824,0.00038534,7]
[314152610,1708026638629,-500.0,0.00038534,7]
[314152612,1708026638639,-500.0,0.00038534,2]
[314152614,1708026638649,-500.0,0.00038534,7]
[314152616,1708026638660,-500.0,0.00038534,7]
[314152619,1708026638671,-500.0,0.00038534,7]
[314152621,1708026638680,-500.0,0.00038534,7]
[314152623,1708026638689,-318.70201796,0.00038534,7]
[314152624,1708026638699,-500.0,0.00038534,7]
[314152626,1708026638708,-500.0,0.00038534,2]
[314152628,1708026638717,-500.0,0.00038534,7]
[314152631,1708026638728,-500.0,0.00038534,7]
[314152633,1708026638738,-500.0,0.00038534,7]
[314152635,1708026638747,-500.0,0.00038535,7]
[314152636,1708026638755,-194.61127976,0.00038535,10]
[314152638,1708026638765,-164.60010223,0.0003854,2]
[314152640,1708026638774,-168284.16961282,0.0003857,10]
[314152643,1708026638790,-6721.13279701,0.0003857,10]
[314152646,1708026638802,-280.0,0.0003857,10]
[314152648,1708026638814,-1914.184875,0.0003857,10]
[314152650,1708026638825,-371.57952427,0.0003857,10]
[314152652,1708026638837,-500.47700057,0.0003857,10]
[314152655,1708026638853,-668.50793059,0.0003857,10]
[314152658,1708026638870,-23508.60833174,0.0003857,10]
[314152660,1708026638879,-271252.6914,0.0003857,3]
[314152662,1708026638888,-800.0,0.00038579,15]
[314152664,1708026638897,-200.0,0.00038579,20]
[314152666,1708026638906,-339.37503507,0.00038579,7]
[314152668,1708026638915,-500.0,0.00038579,7]
[314152670,1708026638925,-500.0,0.00038579,7]
[314152672,1708026638934,-500.0,0.00038579,7]
[314152674,1708026638943,-500.0,0.00038579,7]
[314152676,1708026638952,-500.0,0.00038579,7]
[314152677,1708026638961,-616.18,0.00038579,7]
[314152678,1708026638970,-500.0,0.00038579,7]
[314152679,1708026638980,-500.0,0.00038579,7]
[314152680,1708026638989,-500.0,0.00038579,7]
[314152681,1708026638998,-500.0,0.00038579,7]
[314152682,1708026639007,-500.0,0.00038579,7]
[314152683,1708026639016,-500.0,0.00038579,7]
[314152684,1708026639025,-500.0,0.00038579,7]
[314152686,1708026639034,-500.0,0.00038579,7]
[314152688,1708026639044,-500.0,0.00038579,7]
[314152690,1708026639052,-612.92,0.00038579,7]
[314152692,1708026639061,-510.91,0.00038579,7]
[314152694,1708026639071,-518.98,0.00038579,7]
[314152696,1708026639080,-229.89893227,0.00038579,7]
[314152698,1708026639089,-500.0,0.00038579,7]
[314152700,1708026639099,-500.0,0.00038579,7]
[314152702,1708026639108,-500.0,0.00038579,7]
[314152704,1708026639117,-1444.37,0.00038579,7]
[314152706,1708026639126,-500.0,0.00038579,7]
[314152708,1708026639136,-842.92,0.00038579,7]
[314152710,1708026639145,-500.0,0.00038579,7]
[314152712,1708026639154,-12257.4945498,0.00038579,10]
[314152714,1708026639163,-383375.33343026,0.00038579,3]
[314152716,1708026639175,-148779.27088591,0.00038579,3]
[314152718,1708026639183,-7729.36866495,0.0003858,10]
[314152720,1708026639196,-456.58972056,0.0003858,10]
[314152751,1708026641017,-1332.24987063,0.00037,2]
[314152752,1708026641027,-4816.14551455,0.0003858,10]
[314152753,1708026641038,-3869.46925859,0.0003858,10]
[314152754,1708026641074,-321.83999,0.0003858,10]
[314152755,1708026641086,-31836.56505065,0.0003858,10]
[314152756,1708026641095,-500.0,0.00038589,7]
[314152757,1708026641104,-557.22374876,0.00038589,7]
[314152758,1708026641113,-222.18383669,0.00038589,7]
[314152759,1708026641122,-500.0,0.00038589,7]
[314152760,1708026641131,-500.0,0.00038589,7]
[314152761,1708026641141,-500.0,0.00038589,7]
[314152762,1708026641150,-500.0,0.00038589,7]
[314152763,1708026641159,-500.0,0.00038589,7]
[314152764,1708026641168,-500.0,0.00038589,7]
[314152765,1708026641177,-500.0,0.00038589,7]
[314152766,1708026641187,-500.0,0.00038589,7]
[314152767,1708026641196,-500.0,0.00038589,7]
[314152768,1708026641205,-886.65,0.00038589,7]
[314152769,1708026641214,-500.0,0.00038589,7]
[314152770,1708026641224,-500.0,0.00038589,7]
[314152771,1708026641233,-722.2,0.00038589,7]
[314152772,1708026641243,-390.7206789,0.00038589,7]
[314152774,1708026641253,-630.66881274,0.00038589,7]
[314152776,1708026641262,-500.0,0.00038589,7]
[314152777,1708026641271,-500.0,0.00038589,7]
[314152779,1708026641280,-500.0,0.00038589,7]
[314152781,1708026641289,-500.0,0.00038589,7]
[314152782,1708026641298,-500.0,0.00038589,7]
[314152783,1708026641307,-500.0,0.00038589,7]
[314152784,1708026641317,-500.0,0.00038589,7]
[314152785,1708026641326,-500.0,0.00038589,7]
[314152787,1708026641336,-500.0,0.00038589,7]
[314152788,1708026641346,-1406.61,0.00038589,7]
[314152789,1708026641355,-212.95019584,0.00038589,7]
[314152790,1708026641367,-287.04980416,0.00038589,7]
[314152791,1708026641376,-387.62919584,0.00038589,7]
[314152792,1708026641389,-112.37080416,0.00038589,7]
[314152793,1708026641398,-263.31242554,0.00038589,7]
[314152794,1708026641414,-241.88757446,0.00038589,7]
[314152795,1708026641423,-360.3645996,0.00038589,4]
[314152796,1708026641433,-500.0,0.00038589,7]
[314152797,1708026641446,-500.0,0.00038589,7]
[314152798,1708026641455,-500.0,0.00038589,7]
[314152799,1708026641464,-500.0,0.00038589,7]
[314152800,1708026641474,-611.53,0.00038589,7]
[314152801,1708026641483,-500.0,0.00038589,7]
[314152802,1708026641492,-500.0,0.00038589,7]
[314152803,1708026641501,-500.0,0.00038589,7]
[314152804,1708026641511,-500.0,0.00038589,7]
[314152805,1708026641521,-1490.14,0.00038589,7]
[314152806,1708026641531,-232.01,0.00038599,7]
[314152807,1708026641542,-500.0,0.00038599,7]
[314152808,1708026641556,-500.0,0.00038599,7]
[314152809,1708026641565,-500.0,0.00038599,7]
[314152810,1708026641575,-500.0,0.00038599,7]
[314152811,1708026641585,-500.0,0.00038599,7]
[314152812,1708026641594,-500.0,0.00038599,7]
[314152813,1708026641604,-500.0,0.00038599,7]
[314152814,1708026641613,-150.0,0.00038599,7]
[314152815,1708026641623,-500.0,0.00038599,7]
[314152816,1708026641632,-500.0,0.00038599,7]
[314152817,1708026641643,-500.0,0.00038599,7]
[314152818,1708026641652,-500.0,0.00038599,7]
[314152819,1708026641661,-291.44330168,0.00038599,7]
[314152820,1708026641670,-500.0,0.00038599,7]
[314152821,1708026641679,-500.0,0.00038599,2]
[314152822,1708026641689,-500.0,0.00038599,7]
[314152823,1708026641699,-488.44464784,0.00038599,7]
[314152824,1708026641708,-500.0,0.00038599,7]
[314152825,1708026641718,-500.0,0.00038599,7]
[314152826,1708026641727,-500.0,0.00038599,7]
[314152827,1708026641737,-500.0,0.00038599,7]
[314152828,1708026641746,-500.0,0.00038599,7]
[314152829,1708026641756,-500.0,0.00038599,7]
[314152830,1708026641765,-500.0,0.00038599,7]
[314152831,1708026641775,-500.0,0.00038599,7]
[314152832,1708026641784,-500.0,0.00038599,7]
[314152833,1708026641793,-526.94371689,0.00038599,7]
[314152834,1708026641807,-524.21990136,0.00038599,7]
[314152835,1708026641821,-500.0,0.00038599,7]
[314152836,1708026641831,-170.76771937,0.00038599,7]
[314152837,1708026641841,-500.0,0.00038599,7]
[314152838,1708026641850,-500.0,0.00038599,7]
[314152839,1708026641859,-573.73886583,0.00038599,7]
[314152840,1708026641869,-500.0,0.00038599,7]
[314152841,1708026641878,-500.0,0.00038599,7]
[314152842,1708026641887,-643.63,0.00038599,7]
[314152843,1708026641897,-500.0,0.00038599,7]
[314152844,1708026641906,-500.0,0.00038599,7]
[314152845,1708026641916,-500.0,0.00038599,7]
[314152846,1708026641925,-500.0,0.00038599,7]
[314152847,1708026641935,-500.0,0.00038599,7]
[314152848,1708026641944,-500.0,0.00038599,7]
[314152849,1708026641954,-500.0,0.00038599,7]
[314152850,1708026641963,-339.87967327,0.00038599,7]
[314152856,1708026642752,-250.0,0.00037796,111]
[314152857,1708026642762,-160.12032673,0.00038599,7]
[314152858,1708026642771,-500.0,0.00038599,7]
[314152859,1708026642780,-500.0,0.00038599,7]
[314152860,1708026642790,-500.0,0.00038599,7]
[314152861,1708026642799,-500.0,0.00038599,7]
[314152862,1708026642808,-415.43217327,0.00038599,7]
[314152863,1708026642819,-459.60782673,0.00038599,7]
[314152864,1708026642828,-239.88042545,0.00038599,7]
[314152865,1708026642841,-260.11957455,0.00038599,7]
[314152866,1708026642850,-500.0,0.00038599,7]
[314152867,1708026642859,-58.7396176,0.00038599,7]
[314152868,1708026642915,-441.2603824,0.00038599,7]
[314152869,1708026642926,-500.0,0.00038599,7]
[314152870,1708026642936,-464.55838543,0.00038599,7]
[314152871,1708026643027,-118.68161457,0.00038599,7]
[314152873,1708026643037,-500.0,0.00038599,7]
[314152874,1708026643046,-421.49458455,0.00038599,7]
[314152875,1708026643055,-500.0,0.00038599,7]
[314152876,1708026643064,-500.0,0.00038599,7]
[314152877,1708026643074,-500.0,0.00038599,7]
[314152878,1708026643083,-500.0,0.00038599,7]
[314152880,1708026643093,-500.0,0.00038599,7]
[314152881,1708026643103,-500.0,0.00038599,7]
[314152882,1708026643112,-500.0,0.00038599,7]
[314152883,1708026643122,-500.0,0.00038599,7]
[314152884,1708026643131,-637.96,0.00038599,7]
[314152885,1708026643142,-500.0,0.00038599,7]
[314152886,1708026643151,-500.0,0.00038599,7]
[314152887,1708026643161,-500.0,0.00038599,7]
[314152888,1708026643169,-500.0,0.00038599,7]
[314152889,1708026643179,-2283.2,0.00038599,7]
[314152890,1708026643188,-500.0,0.00038599,7]
[314152891,1708026643198,-500.0,0.00038599,7]
[314152892,1708026643207,-500.0,0.00038599,7]
[314152893,1708026643216,-500.0,0.00038599,7]
[314152894,1708026643225,-500.0,0.00038599,7]
[314152895,1708026643234,-500.0,0.00038599,7]
[314152896,1708026643243,-500.0,0.00038599,7]
[314152897,1708026643252,-500.0,0.00038599,7]
[314152898,1708026643262,-500.0,0.00038599,7]
[314152899,1708026643271,-500.0,0.00038599,7]
[314152900,1708026643281,-500.0,0.00038599,7]
[314152901,1708026643290,-500.0,0.00038599,7]
[314152902,1708026643300,-500.0,0.00038599,7]
[314152903,1708026643309,-500.0,0.00038599,7]
[314152904,1708026643318,-500.0,0.00038599,7]
[314152905,1708026643327,-812.89,0.00038599,7]
[314152906,1708026643336,-500.0,0.00038599,7]
[314152907,1708026643345,-500.0,0.00038599,7]
[314152908,1708026643354,-500.0,0.00038599,7]
[314152909,1708026643363,-500.0,0.00038599,7]
[314152910,1708026643373,-500.0,0.00038599,7]
[314152911,1708026643382,-500.0,0.00038599,7]
[314152912,1708026643393,-500.0,0.00038599,7]
[314152913,1708026643402,-500.0,0.00038599,7]
[314152914,1708026643411,-159.20140934,0.00038599,7]
[314152919,1708026645692,-155.0,0.00036999,4]
[314152920,1708026645701,-500.0,0.00038579,7]
[314152921,1708026645712,-340.79859066,0.00038599,7]
[314152922,1708026645721,-93.74124958,0.00038599,7]
[314152923,1708026645749,-406.25875042,0.00038599,7]
[314152924,1708026645766,-500.0,0.00038599,7]
[314152925,1708026645780,-500.0,0.00038599,7]
[314152926,1708026645790,-500.0,0.00038599,7]
[314152927,1708026645799,-500.0,0.00038599,7]
[314152928,1708026645809,-500.0,0.00038599,7]
[314152929,1708026645819,-500.0,0.00038599,7]
[314152930,1708026645829,-541.93,0.00038599,7]
[314152931,1708026645839,-791.2,0.00038599,7]
[314152932,1708026645847,-500.0,0.00038599,7]
[314152933,1708026645857,-500.0,0.00038599,7]
[314152934,1708026645866,-500.0,0.00038599,7]
[314152935,1708026645876,-500.0,0.00038599,7]
[314152936,1708026645885,-4637.67835618,0.00038599,7]
[314152937,1708026645899,-2879.24164382,0.00038599,7]
[314152938,1708026645909,-500.0,0.00038599,7]
[314152939,1708026645918,-500.0,0.00038623,7]
[314152940,1708026645927,-159.0,0.0003864,2]
[314152941,1708026645938,-152.82025864,0.00038685,2]
[314152942,1708026645947,-500.0,0.00038719,7]
[314152943,1708026645956,-500.0,0.00038719,7]
[314152944,1708026645966,-542.55776371,0.00038719,7]
[314152945,1708026645975,-500.0,0.00038719,7]
[314152946,1708026645985,-500.0,0.00038719,7]
[314152947,1708026645994,-500.0,0.00038719,7]
[314152948,1708026646003,-500.0,0.00038719,7]
[314152949,1708026646013,-500.0,0.00038719,7]
[314152950,1708026646022,-500.0,0.00038719,7]
[314152951,1708026646032,-500.0,0.00038719,7]
[314152952,1708026646041,-113.641017,0.00038719,2]
[314152954,1708026646053,-386.358983,0.00038719,2]
[314152956,1708026646063,-500.0,0.00038719,7]
[314152957,1708026646073,-479.57961728,0.00038719,7]
[314152958,1708026646082,-500.0,0.00038719,7]
[314152959,1708026646091,-500.0,0.00038719,7]
[314152960,1708026646100,-345.58600682,0.00038753,2]
[314152961,1708026646110,-500.0,0.00038757,7]
[314152962,1708026646119,-6324.59985934,0.00038763,12]
[314152963,1708026646129,-151.0,0.000388,7]
[314152964,1708026646139,-500.0,0.00038807,7]
[314152965,1708026646148,-500.0,0.00038807,7]
[314152966,1708026646158,-500.0,0.00038807,7]
[314152967,1708026646167,-500.0,0.00038807,7]
[314152968,1708026646176,-500.0,0.00038807,7]
[314152969,1708026646185,-422.57,0.00038807,7]
[314152970,1708026646194,-226.45678019,0.00038808,3]
[314152971,1708026646208,-500.0,0.00038808,7]
[314152972,1708026646218,-500.0,0.00038808,7]
[314152973,1708026646227,-1000.0,0.00038808,7]
[314152974,1708026646236,-500.0,0.00038808,7]
[314152975,1708026646246,-500.0,0.00038808,7]
[314152976,1708026646255,-559.96437286,0.00038808,7]
[314152977,1708026646264,-500.0,0.00038808,7]
[314152978,1708026646274,-500.0,0.00038808,7]
[314152979,1708026646283,-500.0,0.00038808,7]
[314152980,1708026646292,-500.0,0.00038808,7]
[314152981,1708026646302,-500.0,0.00038808,7]
[314152982,1708026646311,-500.0,0.00038808,7]
[314152983,1708026646321,-500.0,0.00038808,2]
[314152984,1708026646330,-500.0,0.00038808,7]
[314152985,1708026646339,-229.68149028,0.00038809,7]
[314152986,1708026646349,-500.0,0.00038849,31]
[314152987,1708026646358,-500.0,0.00038849,31]
[314152988,1708026646367,-500.0,0.00038849,31]
[314152989,1708026646377,-515.24114712,0.00038849,31]
[314152990,1708026646597,-500.0,0.00038849,31]
[314152991,1708026646607,-500.0,0.00038849,31]
[314152992,1708026646617,-500.0,0.00038849,31]
[314152993,1708026646627,-500.0,0.00038849,31]
[314152994,1708026646637,-500.0,0.00038849,31]
[314152995,1708026646647,-500.0,0.00038849,31]
[314152996,1708026646656,-85.56834764,0.00038849,31]
[314152997,1708026646673,-2425.77,0.00038356,15]
[314152998,1708026646683,-414.43165236,0.00038849,31]
[314152999,1708026646692,-500.0,0.00038849,31]
[314153000,1708026646702,-500.0,0.00038849,31]
[314153001,1708026646711,-500.0,0.00038849,31]
[314153002,1708026646721,-500.0,0.00038849,31]
[314153003,1708026646730,-500.0,0.00038849,31]
[314153004,1708026646740,-500.0,0.00038849,31]
[314153005,1708026646750,-500.0,0.00038849,31]
[314153006,1708026646759,-500.0,0.00038849,31]
[314153007,1708026646769,-500.0,0.00038849,31]
[314153008,1708026646779,-500.0,0.00038849,31]
[314153009,1708026646788,-500.0,0.00038849,31]
[314153010,1708026646798,-500.0,0.00038849,31]
[314153011,1708026646806,-500.0,0.00038849,31]
[314153012,1708026646816,-500.0,0.00038849,31]
[314153013,1708026646825,-500.0,0.00038849,31]
[314153014,1708026646835,-379.66378231,0.00038849,31]
[314153015,1708026646845,-500.0,0.00038849,31]
[314153016,1708026646858,-500.0,0.00038849,31]
[314153017,1708026646868,-500.0,0.00038849,31]
[314153018,1708026646877,-500.0,0.00038849,31]
[314153019,1708026646886,-144.57850823,0.00038849,31]
[314153020,1708026646900,-355.42149177,0.00038849,31]
[314153021,1708026646909,-500.0,0.00038849,31]
[314153022,1708026646918,-271252.6914,0.00038849,3]
[314153023,1708026646927,-500.0,0.00038853,7]
[314153024,1708026646937,-500.0,0.00038853,7]
[314153025,1708026646946,-500.0,0.00038853,7]
[314153026,1708026646955,-500.0,0.00038853,7]
[314153027,1708026646964,-616.18,0.00038853,7]
[314153028,1708026646974,-500.0,0.00038853,7]
[314153029,1708026646983,-500.0,0.00038853,7]
[314153030,1708026646992,-500.0,0.00038853,7]
[314153031,1708026647002,-500.0,0.00038853,7]
[314153032,1708026647011,-500.0,0.00038853,7]
[314153033,1708026647021,-500.0,0.00038853,7]
[314153034,1708026647030,-500.0,0.00038853,7]
[314153035,1708026647039,-612.92,0.00038853,7]
[314153036,1708026647048,-510.91,0.00038853,7]
[314153037,1708026647058,-518.98,0.00038853,7]
[314153038,1708026647067,-500.0,0.00038853,7]
[314153039,1708026647077,-500.0,0.00038853,7]
[314153040,1708026647086,-500.0,0.00038853,7]
[314153041,1708026647095,-1444.37,0.00038853,7]
[314153042,1708026647105,-500.0,0.00038853,7]
[314153043,1708026647115,-842.92,0.00038853,7]
[314153044,1708026647125,-583.52818269,0.00038853,7]
[314153045,1708026647134,-500.0,0.00038853,7]
[314153046,1708026647144,-64421.15401586,0.00038859,3]
[314153047,1708026647158,-599.27979208,0.00038859,3]
[314153048,1708026647174,-309.18,0.00038533,7]
[314153049,1708026669972,487970.06154547,0.00023,2]
[314153050,1708026670000,260000.0,0.00023,2]
[314153051,1708026670030,1522000.0,0.00023,2]
[314153052,1708026670055,5850.0,0.00023,2]
[314153053,1708026670085,1296.83400313,0.00023,2]
[314153054,1708026670111,1296.83400313,0.00023,2]
[314153055,1708026670142,4674444.73794091,0.00023,2]
[314153056,1708026694144,566.8494334,0.000225,2]
[314153057,1708026771260,442.063459,0.000301,120]
[314153058,1708026844453,-350.0,0.00025,3]
[314153059,1708026844474,-150.0,0.00025089,2]
[314153060,1708026844499,-100.0,0.0002509,2]
[314153061,1708026864651,195.20609658,0.000137,2]
[314153062,1708026868906,2513.90859555,0.000232,2]
[314153066,1708027759138,-155.0,0.0002498,2]
[314153067,1708027759158,-159.78578832,0.00024981,2]
[314153068,1708027759178,-263.75214374,0.0002499,2]
[314153069,1708027759197,-223.50782254,0.0002509,2]
[314153078,1708027831876,-9529.31665827,0.0002509,2]
[314153079,1708027831885,-1539.45457061,0.0002509,2]
[314153080,1708027831894,-468.65760044,0.0002509,2]
[314153081,1708027831903,-263.75214365,0.00025634,2]
[314153082,1708027831912,-263.75214365,0.00026279,2]
[314153083,1708027831921,-2361.04789368,0.000263,2]
[314153084,1708027831930,-263.75214365,0.00026923,2]
[314153085,1708027831939,-400.0,0.00027,3]
[314153086,1708027831947,-272.72,0.00027,2]
[314153087,1708027831956,-848.11,0.00027,20]
[314153088,1708027831966,-2014.7,0.00027,2]
[314153089,1708027831975,-690.44253496,0.000272,2]
[314153090,1708027831984,-263.75214365,0.00027567,2]
[314153091,1708027831994,-999.99,0.00027567,2]
[314153092,1708027832003,-7932.18,0.00027567,2]
[314153093,1708027832012,-499.99,0.00027567,2]
[314153094,1708027832020,-12325.49,0.00027567,2]
[314153095,1708027832031,-263.75214365,0.00028211,2]
[314153096,1708027832040,-263.75214365,0.00028856,2]
[314153097,1708027832049,-450.0,0.00029,3]
[314153098,1708027832058,-263.75214365,0.000295,2]
[314153099,1708027832068,-150.0,0.000297,2]
[314153100,1708027832077,-6428.27226892,0.0002996,2]
[314153101,1708027832086,-751.11492811,0.0003,2]
[314153102,1708027832096,-344.44496608,0.0003,2]
[314153103,1708027832105,-4296.04858901,0.0003,2]
[314153104,1708027832114,-597.79736015,0.000301,2]
[314153105,1708027832123,-263.75214365,0.00030144,2]
[314153106,1708027832134,-263.75214365,0.00030788,2]
[314153107,1708027832143,-214.68340081,0.00030999,4]
[314153108,1708027832153,-500.0,0.00031,3]
[314153109,1708027832162,-372.25725722,0.00031,2]
[314153110,1708027832173,-851.79,0.00031012,2]
[314153111,1708027832183,-263.75214365,0.00031433,2]
[314153112,1708027832192,-250.0,0.00031772,2]
[314153113,1708027832201,-151.75,0.00031965,2]
[314153114,1708027832211,-1610.19,0.00032001,2]
[314153115,1708027832220,-200.0,0.00032016,2]
[314153116,1708027832230,-23900.0,0.00032034,2]
[314153117,1708027832241,-263.75214365,0.00032077,2]
[314153118,1708027832252,-238.93,0.0003208,2]
[314153119,1708027832261,-615.65,0.0003213,2]
[314153120,1708027832270,-2000.0,0.00032134,2]
[314153121,1708027832280,-250.0,0.00032166,2]
[314153122,1708027832288,-151.75,0.00032193,2]
[314153123,1708027832299,-155.7,0.00032199,2]